Workbook

Sheet 技术参数表
A1: R Hi-efficiency Series | B1: HP | D1: 8HP | E1: 10HP | F1: 12HP | G1: 14HP | H1: 16HP | I1: 18HP | J1: 20HP | K1: 22HP | L1: 24HP | M1: 26HP | N1: 28HP | O1: 30HP | P1: 32HP | Q1: 34HP | R1: 36HP | S1: 38HP | T1: 40HP | U1: 42HP | V1: 44HP | W1: 46HP | X1: 48HP
A2: Model Power Supply | B2: AC3 380V～415V/50Hz | D2: AVWT-76FESRA | E2: AVWT-96FESRA | F2: AVWT-114FESSA | G2: AVWT-136FESSA | H2: AVWT-154FESSA | I2: AVWT-170FESZA | J2: AVWT-190FESZA | K2: AVWT-212FESZA | L2: AVWT-232FESZA | M2: AVWT-250FESZA | N2: AVWT-272FESZA | O2: AVWT-290FESZA | P2: AVWT-308FESZA | Q2: AVWT-324FESZA | R2: AVWT-340FESZA | S2: AVWT-364FESZA | T2: AVWT-382FESZA | U2: AVWT-398FESZA | V2: AVWT-420FESZA | W2: AVWT-438FESZA | X2: AVWT-454FESZA
A3: Combination | I3: AVWT-76* | J3: AVWT-76* | K3: AVWT-76* | L3: AVWT-114* | M3: AVWT-114* | N3: AVWT-136* | O3: AVWT-136* | P3: AVWT-154* | Q3: AVWT-96* | R3: AVWT-96* | S3: AVWT-96* | T3: AVWT-96* | U3: AVWT-96* | V3: AVWT-114* | W3: AVWT-136* | X3: AVWT-154*
I4: AVWT-96* | J4: AVWT-114* | K4: AVWT-136* | L4: AVWT-114* | M4: AVWT-136* | N4: AVWT-136* | O4: AVWT-154* | P4: AVWT-154* | Q4: AVWT-96* | R4: AVWT-96* | S4: AVWT-114* | T4: AVWT-136* | U4: AVWT-154* | V4: AVWT-154* | W4: AVWT-154* | X4: AVWT-154*
Q5: AVWT-136* | R5: AVWT-154* | S5: AVWT-154* | T5: AVWT-154* | U5: AVWT-154* | V5: AVWT-154* | W5: AVWT-154* | X5: AVWT-154*
A6: Cooling Operation | B6: Norminal Capacity | C6: KW | D6: 22.4 | E6: 28 | F6: 33.5 | G6: 40 | H6: 45 | I6: 50 | J6: 56 | K6: 61.5 | L6: 69 | M6: 73 | N6: 80 | O6: 85 | P6: 90 | Q6: 95 | R6: 100 | S6: 109 | T6: 112 | U6: 118 | V6: 125 | W6: 132 | X6: 136
C7: KBtu/h | D7: 76.4505056 | E7: 95.563132 | F7: 114.3344615 | G7: 136.51876 | H7: 153.5 | I7: 170.64845 | J7: 190.8 | K7: 213 | L7: 232 | M7: 250.8 | N7: 273 | O7: 290 | P7: 307 | Q7: 324.1 | R7: 341.2 | S7: 365.1 | T7: 382.1 | U7: 399.2 | V7: 421.4 | W7: 438.4 | X7: 455.5
B8: Power Consumption | C8: KW | D8: 5.32 | E8: 6.97 | F8: 9.18 | G8: 10.81 | H8: 13.16 | I8: =D8+E8 -> 12.29 | J8: =D8+F8 -> 14.5 | K8: =D8+G8 -> 16.13 | L8: =F8+F8 -> 18.36 | M8: =F8+G8 -> 19.99 | N8: =G8+G8 -> 21.62 | O8: =G8+H8 -> 23.97 | P8: =H8+H8 -> 26.32 | Q8: =E8+E8+G8 -> 24.75 | R8: =E8+E8+H8 -> 27.1 | S8: =E8+F8+H8 -> 29.31 | T8: =E8+G8+H8 -> 30.94 | U8: =E8+H8+H8 -> 33.29 | V8: =F8+H8+H8 -> 35.5 | W8: =G8+H8+H8 -> 37.13 | X8: =H8+H8+H8 -> 39.48
B9: EER | D9: =D6/D8 -> 4.210526316 | E9: =E6/E8 -> 4.017216643 | F9: 3.649237473 | G9: 3.700277521 | H9: 3.419452888 | I9: 4.068348251 | J9: 3.862068966 | K9: 3.812771234 | L9: 3.758169935 | M9: 3.651825913 | N9: 3.700277521 | O9: 3.546099291 | P9: 3.419452888 | Q9: 3.838383838 | R9: 3.6900369 | S9: 3.718867281 | T9: 3.619909502 | U9: 3.54460799 | V9: 3.521126761 | W9: 3.555076757 | X9: 3.444782168
A10: Heating Operation | B10: Norminal Capacity | C10: KW | D10: 25 | E10: 31.5 | F10: 37.5 | G10: 45 | H10: 50 | I10: 56 | J10: 63 | K10: 69 | L10: 77.5 | M10: 82.5 | N10: 90 | O10: 95 | P10: 100 | Q10: 106 | R10: =I10+I10 -> 112 | S10: 118 | T10: 125 | U10: =J10+K10 -> 132 | V10: 140 | W10: 145 | X10: 150
C11: KBtu/h | D11: 85.3 | E11: 107.5 | F11: 128 | G11: 153.5 | H11: 170.6 | I11: 191.1 | J11: 213.3 | K11: 239 | L11: 261 | M11: 281.5 | N11: 307.1 | O11: 324.1 | P11: 341.2 | Q11: 361.7 | R11: 382.1 | S11: 409.5 | T11: 426.5 | U11: 447.5 | V11: 472.6 | W11: 494.7 | X11: 511.8
B12: Power Consumption | C12: KW | D12: 5.4 | E12: 7.19 | F12: 8.6 | G12: 10.2 | H12: 12.5 | I12: =D12+E12 -> 12.59 | J12: =D12+F12 -> 14 | K12: =D12+G12 -> 15.6 | L12: =F12+F12 -> 17.2 | M12: =F12+G12 -> 18.8 | N12: =G12+G12 -> 20.4 | O12: =G12+H12 -> 22.7 | P12: =H12+H12 -> 25 | Q12: =E12+E12+G12 -> 24.58 | R12: =E12+E12+H12 -> 26.88 | S12: =E12+F12+H12 -> 28.29 | T12: =E12+G12+H12 -> 29.89 | U12: =E12+H12+H12 -> 32.19 | V12: =F12+H12+H12 -> 33.6 | W12: =G12+H12+H12 -> 35.2 | X12: =H12+H12+H12 -> 37.5
B13: COP | D13: =D10/D12 -> 4.62962963 | E13: =E10/E12 -> 4.38108484 | F13: 4.360465116 | G13: 4.411764706 | H13: 4 | I13: 4.447974583 | J13: 4.5 | K13: 4.423076923 | L13: 4.505813953 | M13: 4.388297872 | N13: 4.411764706 | O13: 4.185022026 | P13: 4 | Q13: 4.312449146 | R13: 4.166666667 | S13: 4.171085189 | T13: 4.182000669 | U13: 4.100652377 | V13: 4.166666667 | W13: 4.119318182 | X13: 4
A14: Air Flow Rate | C14: m3/min | D14: 170 | E14: 175 | F14: 195 | G14: 195 | H14: 195 | I14: =D14+E14 -> 345 | J14: =D14+F14 -> 365 | K14: =D14+G14 -> 365 | L14: =F14+F14 -> 390 | M14: =F14+G14 -> 390 | N14: =G14+G14 -> 390 | O14: =G14+H14 -> 390 | P14: =H14+H14 -> 390 | Q14: =E14+E14+G14 -> 545 | R14: =E14+E14+H14 -> 545 | S14: =E14+F14+H14 -> 565 | T14: =E14+G14+H14 -> 565 | U14: =E14+H14+H14 -> 565 | V14: =F14+H14+H14 -> 585 | W14: =G14+H14+H14 -> 585 | X14: =H14+H14+H14 -> 585
A15: Out Dimension | C15: mm | D15: 1720×950×750 | F15: 1720×1210×750 | I15: 1720×(950+950)×750 | J15: 1720×(950+1210)×750 | L15: 1720×(1210+1210)×750 | Q15: 1720×(950+950+1210)×750 | S15: 1720×(950+1210+1210)×750 | V15: 1720×(1210+1210+1210)×750
A16: Packing Dimension | C16: mm | D16: 1828×1018×824 | F16: 1828×1278×824 | I16: 1828×(1018+1018)×824 | J16: 1828×(1018+1278)×824 | L16: 1828×(1278+1278)×824 | Q16: 1828×(1018+1018+1278)×824 | S16: 1828×(1018+1278+1278)×824 | V16: 1828×(1278+1278+1278)×824
A17: Net Weight | C17: kg | D17: 245 | E17: 246 | F17: 311 | G17: 312 | H17: 318 | I17: =D17+E17 -> 491 | J17: =D17+F17 -> 556 | K17: =D17+G17 -> 557 | L17: =F17+F17 -> 622 | M17: =F17+G17 -> 623 | N17: =G17+G17 -> 624 | O17: =G17+H17 -> 630 | P17: =H17+H17 -> 636 | Q17: =E17+E17+G17 -> 804 | R17: =E17+E17+H17 -> 810 | S17: =E17+F17+H17 -> 875 | T17: =E17+G17+H17 -> 876 | U17: =E17+H17+H17 -> 882 | V17: =F17+H17+H17 -> 947 | W17: =G17+H17+H17 -> 948 | X17: =H17+H17+H17 -> 954
A18: Gross Weight | C18: kg | D18: 255 | E18: 255 | F18: 325 | G18: 325 | H18: 330 | I18: =D18+E18 -> 510 | J18: =D18+F18 -> 580 | K18: =D18+G18 -> 580 | L18: =F18+F18 -> 650 | M18: =F18+G18 -> 650 | N18: =G18+G18 -> 650 | O18: =G18+H18 -> 655 | P18: =H18+H18 -> 660 | Q18: =E18+E18+G18 -> 835 | R18: =E18+E18+H18 -> 840 | S18: =E18+F18+H18 -> 910 | T18: =E18+G18+H18 -> 910 | U18: =E18+H18+H18 -> 915 | V18: =F18+H18+H18 -> 985 | W18: =G18+H18+H18 -> 985 | X18: =H18+H18+H18 -> 990
A19: Compressor Quantity | D19: 1 | E19: 1 | F19: 2 | G19: 2 | H19: 2 | I19: =D19+E19 -> 2 | J19: =D19+F19 -> 3 | K19: =D19+G19 -> 3 | L19: =F19+F19 -> 4 | M19: =F19+G19 -> 4 | N19: =G19+G19 -> 4 | O19: =G19+H19 -> 4 | P19: =H19+H19 -> 4 | Q19: =E19+E19+G19 -> 4 | R19: =E19+E19+H19 -> 4 | S19: =E19+F19+H19 -> 5 | T19: =E19+G19+H19 -> 5 | U19: =E19+H19+H19 -> 5 | V19: =F19+H19+H19 -> 6 | W19: =G19+H19+H19 -> 6 | X19: =H19+H19+H19 -> 6
A20: Condenser Fan Quantity | D20: 1 | E20: 1 | F20: 1 | G20: 1 | H20: 1 | I20: 2 | J20: 2 | K20: 2 | L20: 2 | M20: 2 | N20: 2 | O20: 2 | P20: 2 | Q20: 3 | R20: 3 | S20: 3 | T20: 3 | U20: 3 | V20: 3 | W20: 3 | X20: 3
A21: Cabinet Color | D21: Lvory White
A22: Refrigerant Piping | B22: Low Gas Line | C22: mm | D22: φ19.05 | E22: φ22.2 | F22: φ25.4 | G22: φ25.4 | H22: φ28.6 | I22: φ28.6 | J22: φ28.6 | K22: φ28.6 | L22: φ28.6 | M22: φ31.75 | N22: φ31.75 | O22: φ31.75 | P22: φ31.75 | Q22: φ31.75 | R22: φ31.75 | S22: φ38.1 | T22: φ38.1 | U22: φ38.1 | V22: φ38.1 | W22: φ38.1 | X22: φ38.1
B23: High Gas Line | C23: mm | D23: φ15.85 | E23: φ19.05 | F23: φ22.2 | G23: φ22.2 | H23: φ22.2 | I23: φ22.2 | J23: φ22.2 | K23: φ25.4 | L23: φ25.4 | M23: φ25.4 | N23: φ28.6 | O23: φ28.6 | P23: φ28.6 | Q23: φ28.6 | R23: φ28.6 | S23: φ31.75 | T23: φ31.75 | U23: φ31.75 | V23: φ31.75 | W23: φ31.75 | X23: φ31.75
B24: Liquid Line | C24: mm | D24: φ9.53 | E24: φ9.53 | F24: φ12.7 | G24: φ12.7 | H24: φ12.7 | I24: φ15.88 | J24: φ15.88 | K24: φ15.88 | L24: φ15.88 | M24: φ19.05 | N24: φ19.05 | O24: φ19.05 | P24: φ19.05 | Q24: φ19.05 | R24: φ19.05 | S24: φ19.05 | T24: φ19.05 | U24: φ19.05 | V24: φ19.05 | W24: φ19.05 | X24: φ19.05
A25: Max.number of connectable IDU | D25: 13 | E25: 16 | F25: 19 | G25: 23 | H25: 26 | I25: 26 | J25: 33 | K25: 36 | L25: 40 | M25: 43 | N25: 47 | O25: 50 | P25: 53 | Q25: 56 | R25: 59 | S25: 64 | T25: 64 | U25: 64 | V25: 64 | W25: 64 | X25: 64
A26: Max.Piping Length | C26: m | D26: 1000 | E26: 1000 | F26: 1000 | G26: 1000 | H26: 1000 | I26: 1000 | J26: 1000 | K26: 1000 | L26: 1000 | M26: 1000 | N26: 1000 | O26: 1000 | P26: 1000 | Q26: 1000 | R26: 1000 | S26: 1000 | T26: 1000 | U26: 1000 | V26: 1000 | W26: 1000 | X26: 1000
A27: Height Difference | B27: Between ODU&IDU | C27: m | D27: 50/40(90/70*) | E27: 50/40(90/70*) | F27: 50/40(90/70*) | G27: 50/40(90/70*) | H27: 50/40(90/70*) | I27: 50/40(90/70*) | J27: 50/40(90/70*) | K27: 50/40(90/70*) | L27: 50/40(90/70*) | M27: 50/40(90/70*) | N27: 50/40(90/70*) | O27: 50/40(90/70*) | P27: 50/40(90/70*) | Q27: 50/40(90/70*) | R27: 50/40(90/70*) | S27: 50/40(90/70*) | T27: 50/40(90/70*) | U27: 50/40(90/70*) | V27: 50/40(90/70*) | W27: 50/40(90/70*) | X27: 50/40(90/70*)
B28: Between IDUS | C28: m | D28: 15 | E28: 15 | F28: 15 | G28: 15 | H28: 15 | I28: 15 | J28: 15 | K28: 15 | L28: 15 | M28: 15 | N28: 15 | O28: 15 | P28: 15 | Q28: 15 | R28: 15 | S28: 15 | T28: 15 | U28: 15 | V28: 15 | W28: 15 | X28: 15
A29: Noise level | C29: dB(A) | D29: 60 | E29: 60 | F29: 62 | G29: 62 | H29: 63 | I29: 62 | J29: 63 | K29: 63 | L29: 64 | M29: 64 | N29: 64 | O29: 65 | P29: 65 | Q29: 66 | R29: 66 | S29: 67 | T29: 67 | U29: 67 | V29: 67 | W29: 67 | X29: 68
A30: Operation Range | B30: Cooling | C30: ℃ DB | D30: -5℃～48℃
B31: Heating | C31: ℃ WB | D31: -20℃～15.5℃
A32: Note: For connection with " * " please contact with our technical engineer.

Sheet Sheet2
